[Event "*** Titled Tuesday Blitz"]
[Site "Chess.com"]
[Date "2021.03.02"]
[Round "5"]
[White "GUST_b"]
[Black "Joseacorrea"]
[Result "1-0"]
[WhiteElo "2368"]
[BlackElo "2086"]
[TimeControl "180+1"]
[EndTime "10:55:39 PST"]
[Termination "GUST_b won on time"]

1. Nf3 {[%clk 0:02:58.4]} 1... d5 {[%clk 0:02:58.5]} 2. c4 {[%clk 0:02:58.5]}
2... c6 {[%clk 0:02:58.3]} 3. g3 {[%clk 0:02:58.8]} 3... e6 {[%clk 0:02:58.3]}
4. Bg2 {[%clk 0:02:57.6]} 4... f5 {[%clk 0:02:56.9]} 5. O-O {[%clk 0:02:57.2]}
5... Nf6 {[%clk 0:02:56.9]} 6. b3 {[%clk 0:02:56]} 6... Bd6 {[%clk 0:02:52.9]}
7. Ba3 {[%clk 0:02:55]} 7... O-O {[%clk 0:02:51.7]} 8. d4 {[%clk 0:02:52.5]}
8... b6 {[%clk 0:02:46.6]} 9. Bxd6 {[%clk 0:02:46.5]} 9... Qxd6 {[%clk
0:02:47.5]} 10. Nbd2 {[%clk 0:02:44.1]} 10... Bb7 {[%clk 0:02:46.7]} 11. Ne5
{[%clk 0:02:43.2]} 11... Nbd7 {[%clk 0:02:45.7]} 12. Ndf3 {[%clk 0:02:42.4]}
12... Ne4 {[%clk 0:02:43.4]} 13. Nxd7 {[%clk 0:02:38.9]} 13... Qxd7 {[%clk
0:02:42]} 14. Ne5 {[%clk 0:02:39.6]} 14... Qd6 {[%clk 0:02:39.1]} 15. Bxe4
{[%clk 0:02:39.8]} 15... fxe4 {[%clk 0:02:38.3]} 16. e3 {[%clk 0:02:37.7]} 16...
Rac8 {[%clk 0:02:24.5]} 17. Rc1 {[%clk 0:02:36.6]} 17... c5 {[%clk 0:02:24.8]}
18. Qd2 {[%clk 0:02:19]} 18... Rf6 {[%clk 0:02:05.9]} 19. a3 {[%clk 0:01:49]}
19... cxd4 {[%clk 0:02:02.9]} 20. Qxd4 {[%clk 0:01:30.8]} 20... Rf5 {[%clk
0:01:33.7]} 21. f4 {[%clk 0:01:15.8]} 21... exf3 {[%clk 0:01:19.8]} 22. Nxf3
{[%clk 0:01:15.5]} 22... e5 {[%clk 0:01:06]} 23. Qg4 {[%clk 0:01:08.2]} 23...
Rcf8 {[%clk 0:00:36.7]} 24. Ng5 {[%clk 0:00:20.3]} 24... Rxf1+ {[%clk
0:00:31.5]} 25. Rxf1 {[%clk 0:00:21.2]} 25... Rxf1+ {[%clk 0:00:30.8]} 26. Kxf1
{[%clk 0:00:22.1]} 26... dxc4 {[%clk 0:00:29.5]} 27. Qxc4+ {[%clk 0:00:21.2]}
27... Qd5 {[%clk 0:00:24.6]} 28. Qxd5+ {[%clk 0:00:20.2]} 28... Bxd5 {[%clk
0:00:25.5]} 29. b4 {[%clk 0:00:20.9]} 29... h6 {[%clk 0:00:24.1]} 30. Nh3 {[%clk
0:00:21.2]} 30... Kf7 {[%clk 0:00:22.3]} 31. Nf2 {[%clk 0:00:21.6]} 31... Bc4+
{[%clk 0:00:19.5]} 32. Ke1 {[%clk 0:00:21.4]} 32... Ke6 {[%clk 0:00:20.1]} 33.
Kd2 {[%clk 0:00:21.1]} 33... Kd5 {[%clk 0:00:18.4]} 34. Kc3 {[%clk 0:00:21.7]}
34... Be2 {[%clk 0:00:12.7]} 35. e4+ {[%clk 0:00:20.4]} 35... Kd6 {[%clk
0:00:09.4]} 36. Kd2 {[%clk 0:00:20.4]} 36... Bb5 {[%clk 0:00:06.8]} 37. Nd1
{[%clk 0:00:20.1]} 37... Bc6 {[%clk 0:00:04.9]} 38. Ke3 {[%clk 0:00:20.5]} 38...
a5 {[%clk 0:00:04.6]} 39. Nc3 {[%clk 0:00:20.6]} 39... axb4 {[%clk 0:00:04.1]}
40. axb4 {[%clk 0:00:21.5]} 40... b5 {[%clk 0:00:02.2]} 41. h4 {[%clk
0:00:22.1]} 41... g5 {[%clk 0:00:01.7]} 42. Nd1 {[%clk 0:00:21.3]} 42... gxh4
{[%clk 0:00:01.2]} 43. gxh4 {[%clk 0:00:20.9]} 43... Ke6 {[%clk 0:00:01.9]} 44.
Kf3 {[%clk 0:00:20.6]} 44... Kf6 {[%clk 0:00:02.3]} 45. Nf2 {[%clk 0:00:21.5]}
45... Bb7 {[%clk 0:00:01.7]} 46. Ng4+ {[%clk 0:00:21.7]} 1-0

[Event "*** Titled Tuesday Blitz"]
[Site "Chess.com"]
[Date "2021.03.02"]
[Round "5"]
[White "RobertoJBM"]
[Black "Parhamov"]
[Result "0-1"]
[WhiteElo "2714"]
[BlackElo "2890"]
[TimeControl "180+1"]
[EndTime "10:55:40 PST"]
[Termination "Parhamov won on time"]

1. d4 {[%clk 0:03:00.9]} 1... Nf6 {[%clk 0:02:57]} 2. Nf3 {[%clk 0:02:59.4]}
2... b5 {[%clk 0:02:53.4]} 3. e3 {[%clk 0:02:48.2]} 3... a6 {[%clk 0:02:52.8]}
4. Bd3 {[%clk 0:02:48.8]} 4... Bb7 {[%clk 0:02:52.6]} 5. O-O {[%clk 0:02:47.2]}
5... e6 {[%clk 0:02:49.3]} 6. Qe2 {[%clk 0:02:45.7]} 6... c5 {[%clk 0:02:47]} 7.
c3 {[%clk 0:02:46.2]} 7... d5 {[%clk 0:02:39.2]} 8. Nbd2 {[%clk 0:02:45.5]} 8...
Nbd7 {[%clk 0:02:38.5]} 9. a4 {[%clk 0:02:39.9]} 9... c4 {[%clk 0:02:34]} 10.
Bc2 {[%clk 0:02:39.5]} 10... Bd6 {[%clk 0:02:32.8]} 11. e4 {[%clk 0:02:36]}
11... dxe4 {[%clk 0:02:32.8]} 12. Nxe4 {[%clk 0:02:36]} 12... Nxe4 {[%clk
0:02:03.7]} 13. Bxe4 {[%clk 0:02:36.9]} 13... Bxe4 {[%clk 0:02:03.7]} 14. Qxe4
{[%clk 0:02:36]} 14... O-O {[%clk 0:02:01]} 15. axb5 {[%clk 0:02:26.3]} 15...
axb5 {[%clk 0:01:59.8]} 16. Bg5 {[%clk 0:02:17.6]} 16... Qc8 {[%clk 0:01:59]}
17. Bh4 {[%clk 0:02:02.3]} 17... h6 {[%clk 0:01:47.4]} 18. Bg3 {[%clk
0:01:55.4]} 18... Bxg3 {[%clk 0:01:44.9]} 19. hxg3 {[%clk 0:01:56.3]} 19... Nf6
{[%clk 0:01:45.4]} 20. Qe5 {[%clk 0:01:36.3]} 20... Qb7 {[%clk 0:01:32.7]} 21.
Nd2 {[%clk 0:01:26.8]} 21... Rfd8 {[%clk 0:01:15.9]} 22. f3 {[%clk 0:01:21]}
22... Rd5 {[%clk 0:01:12.9]} 23. Qe3 {[%clk 0:01:18.7]} 23... Rdd8 {[%clk
0:00:56]} 24. Qe5 {[%clk 0:01:12.9]} 24... b4 {[%clk 0:00:43.9]} 25. Nxc4 {[%clk
0:00:45.1]} 25... bxc3 {[%clk 0:00:43.6]} 26. bxc3 {[%clk 0:00:43]} 26... Qb3
{[%clk 0:00:38.9]} 27. Ne3 {[%clk 0:00:14.4]} 27... Qxc3 {[%clk 0:00:38.7]} 28.
Rxa8 {[%clk 0:00:12.8]} 28... Rxa8 {[%clk 0:00:39.6]} 29. Rd1 {[%clk 0:00:11.1]}
29... Ra5 {[%clk 0:00:35.3]} 30. Qb8+ {[%clk 0:00:09.9]} 30... Kh7 {[%clk
0:00:34.9]} 31. Qb1+ {[%clk 0:00:10.3]} 31... g6 {[%clk 0:00:32.2]} 32. Qd3
{[%clk 0:00:10.8]} 32... Qb4 {[%clk 0:00:31]} 33. Qd2 {[%clk 0:00:09.8]} 33...
Qb5 {[%clk 0:00:25.8]} 34. Qd3 {[%clk 0:00:09.7]} 34... Qb8 {[%clk 0:00:22.4]}
35. g4 {[%clk 0:00:09.4]} 35... Ra2 {[%clk 0:00:19.8]} 36. Rd2 {[%clk
0:00:02.9]} 36... Ra4 {[%clk 0:00:16]} 37. Rd1 {[%clk 0:00:02.8]} 37... Rb4
{[%clk 0:00:16.1]} 38. d5 {[%clk 0:00:02.2]} 38... Qb6 {[%clk 0:00:12.7]} 0-1

[Event "*** Titled Tuesday Blitz"]
[Site "Chess.com"]
[Date "2021.03.02"]
[Round "5"]
[White "Fraler15"]
[Black "Grimlock_Glasgow"]
[Result "0-1"]
[WhiteElo "2280"]
[BlackElo "2458"]
[TimeControl "180+1"]
[EndTime "10:55:40 PST"]
[Termination "Grimlock_Glasgow won by checkmate"]

1. e4 {[%clk 0:03:00.9]} 1... e5 {[%clk 0:02:58.2]} 2. Nf3 {[%clk 0:03:00.2]}
2... d5 {[%clk 0:02:57.7]} 3. Nxe5 {[%clk 0:02:54.3]} 3... Bd6 {[%clk
0:02:57.9]} 4. d4 {[%clk 0:02:50.4]} 4... dxe4 {[%clk 0:02:58.2]} 5. Nc3 {[%clk
0:02:43.7]} 5... Bxe5 {[%clk 0:02:58]} 6. dxe5 {[%clk 0:02:43.4]} 6... Qxd1+
{[%clk 0:02:58.9]} 7. Kxd1 {[%clk 0:02:44]} 7... Nc6 {[%clk 0:02:59.7]} 8. Nd5
{[%clk 0:02:34.1]} 8... Bg4+ {[%clk 0:02:56.8]} 9. f3 {[%clk 0:02:33.5]} 9...
exf3 {[%clk 0:02:55.6]} 10. Ke1 {[%clk 0:02:24.7]} 10... O-O-O {[%clk
0:02:39.6]} 11. h3 {[%clk 0:02:20.7]} 11... Rxd5 {[%clk 0:02:20.2]} 12. hxg4
{[%clk 0:02:19.6]} 12... fxg2 {[%clk 0:02:11.9]} 13. Bxg2 {[%clk 0:02:17.8]}
13... Rxe5+ {[%clk 0:02:12.3]} 14. Kf2 {[%clk 0:02:17.5]} 14... Nf6 {[%clk
0:02:10.6]} 15. g5 {[%clk 0:02:13.9]} 15... Ne4+ {[%clk 0:02:07.2]} 16. Kf3
{[%clk 0:02:13.6]} 16... Nxg5+ {[%clk 0:02:06.3]} 17. Bxg5 {[%clk 0:02:09.6]}
17... Rxg5 {[%clk 0:02:07.2]} 18. Rad1 {[%clk 0:02:09]} 18... Re5 {[%clk
0:01:42.2]} 19. Bh3+ {[%clk 0:02:08.3]} 19... f5 {[%clk 0:01:41]} 20. Kf4 {[%clk
0:02:08.5]} 20... g6 {[%clk 0:01:38.7]} 21. Bg2 {[%clk 0:01:56.2]} 21... Re2
{[%clk 0:01:37.8]} 22. Bd5 {[%clk 0:01:40.3]} 22... Nd8 {[%clk 0:01:32.8]} 23.
Bb3 {[%clk 0:01:31.5]} 23... Ne6+ {[%clk 0:01:26.1]} 24. Kf3 {[%clk 0:01:30.5]}
24... Re5 {[%clk 0:01:22.6]} 25. Rh2 {[%clk 0:01:20.7]} 25... Re4 {[%clk
0:01:08.4]} 26. c3 {[%clk 0:01:12.9]} 26... Ng5+ {[%clk 0:01:07.5]} 27. Kf2
{[%clk 0:01:06.9]} 27... Rd8 {[%clk 0:01:04.5]} 28. Rxd8+ {[%clk 0:00:54]} 28...
Kxd8 {[%clk 0:01:05.4]} 29. Rg2 {[%clk 0:00:51.1]} 29... Rg4 {[%clk 0:00:58.4]}
30. Rxg4 {[%clk 0:00:49]} 30... fxg4 {[%clk 0:00:59.3]} 31. Kg3 {[%clk
0:00:49.9]} 31... h5 {[%clk 0:00:58.4]} 32. Bc2 {[%clk 0:00:49.8]} 32... Nh7
{[%clk 0:00:50.7]} 33. Bxg6 {[%clk 0:00:49.4]} 33... Nf6 {[%clk 0:00:51.6]} 34.
a4 {[%clk 0:00:28.2]} 34... b6 {[%clk 0:00:49.2]} 35. Bf5 {[%clk 0:00:22.7]}
35... Ke7 {[%clk 0:00:47.8]} 36. Kh4 {[%clk 0:00:20.5]} 36... Kd6 {[%clk
0:00:46.6]} 37. Kg5 {[%clk 0:00:20.2]} 37... Ke5 {[%clk 0:00:46.6]} 38. Bd3
{[%clk 0:00:18.6]} 38... g3 {[%clk 0:00:39.6]} 39. Bf1 {[%clk 0:00:18.2]} 39...
a5 {[%clk 0:00:33.3]} 40. Bg2 {[%clk 0:00:15.5]} 40... c5 {[%clk 0:00:31.7]} 41.
Bf1 {[%clk 0:00:13.5]} 41... Ng4 {[%clk 0:00:25.5]} 42. Kxh5 {[%clk 0:00:12.6]}
42... Ne3 {[%clk 0:00:25.3]} 43. Kh4 {[%clk 0:00:06.2]} 43... Nxf1 {[%clk
0:00:23.7]} 44. Kh3 {[%clk 0:00:05.8]} 44... Kf4 {[%clk 0:00:23.6]} 45. Kg2
{[%clk 0:00:05.8]} 45... Ne3+ {[%clk 0:00:23.7]} 46. Kg1 {[%clk 0:00:06.1]}
46... Kf3 {[%clk 0:00:23.5]} 47. b4 {[%clk 0:00:07]} 47... cxb4 {[%clk
0:00:22.1]} 48. cxb4 {[%clk 0:00:07.9]} 48... axb4 {[%clk 0:00:22.2]} 49. a5
{[%clk 0:00:08.8]} 49... bxa5 {[%clk 0:00:19.8]} 50. Kh1 {[%clk 0:00:09.2]}
50... b3 {[%clk 0:00:19.9]} 51. Kg1 {[%clk 0:00:10.1]} 51... b2 {[%clk
0:00:20.1]} 52. Kh1 {[%clk 0:00:11]} 52... b1=R# {[%clk 0:00:19]} 0-1

[Event "*** Titled Tuesday Blitz"]
[Site "Chess.com"]
[Date "2021.03.02"]
[Round "5"]
[White "lucachess49"]
[Black "KNCP_719"]
[Result "0-1"]
[WhiteElo "2406"]
[BlackElo "2593"]
[TimeControl "180+1"]
[EndTime "10:55:41 PST"]
[Termination "KNCP_719 won on time"]

1. d4 {[%clk 0:03:00.9]} 1... d5 {[%clk 0:02:59.1]} 2. c4 {[%clk 0:03:01.4]}
2... c6 {[%clk 0:02:59.3]} 3. Nc3 {[%clk 0:03:01]} 3... Nf6 {[%clk 0:02:59.7]}
4. e3 {[%clk 0:03:01.6]} 4... e6 {[%clk 0:02:59.6]} 5. Nf3 {[%clk 0:03:02.1]}
5... a6 {[%clk 0:03:00]} 6. Qc2 {[%clk 0:03:02.8]} 6... c5 {[%clk 0:02:59.5]} 7.
cxd5 {[%clk 0:02:57]} 7... exd5 {[%clk 0:02:59.6]} 8. Bd3 {[%clk 0:02:54.9]}
8... Nc6 {[%clk 0:02:59]} 9. O-O {[%clk 0:02:54.5]} 9... Be6 {[%clk 0:02:52.7]}
10. a3 {[%clk 0:02:51.9]} 10... cxd4 {[%clk 0:02:47.5]} 11. exd4 {[%clk
0:02:50.4]} 11... Be7 {[%clk 0:02:47.5]} 12. Re1 {[%clk 0:02:49.1]} 12... O-O
{[%clk 0:02:48]} 13. Bg5 {[%clk 0:02:42.9]} 13... Rc8 {[%clk 0:02:47.3]} 14.
Bxf6 {[%clk 0:02:41.2]} 14... Bxf6 {[%clk 0:02:48.2]} 15. Bxh7+ {[%clk
0:02:41.4]} 15... Kh8 {[%clk 0:02:49]} 16. Bf5 {[%clk 0:02:38.9]} 16... Qd7
{[%clk 0:02:34.5]} 17. Bxe6 {[%clk 0:02:34.9]} 17... fxe6 {[%clk 0:02:35.4]} 18.
Rad1 {[%clk 0:02:27.5]} 18... Qf7 {[%clk 0:02:30.2]} 19. Qe2 {[%clk 0:02:25.8]}
19... Rce8 {[%clk 0:02:24.1]} 20. Rd3 {[%clk 0:02:14.5]} 20... Kg8 {[%clk
0:02:03.5]} 21. Ne5 {[%clk 0:02:00.9]} 21... Bxe5 {[%clk 0:01:56.8]} 22. dxe5
{[%clk 0:02:01.8]} 22... Nxe5 {[%clk 0:01:54.1]} 23. Rh3 {[%clk 0:01:56.5]}
23... Ng6 {[%clk 0:01:42.6]} 24. g3 {[%clk 0:01:44.8]} 24... e5 {[%clk
0:01:31.6]} 25. Rf1 {[%clk 0:01:42.2]} 25... d4 {[%clk 0:00:58.2]} 26. Qh5
{[%clk 0:01:38.9]} 26... Qf5 {[%clk 0:00:57.6]} 27. Qh7+ {[%clk 0:00:52.5]}
27... Kf7 {[%clk 0:00:57.2]} 28. Rh5 {[%clk 0:00:52.3]} 28... Qf3 {[%clk
0:00:43.5]} 29. Rg5 {[%clk 0:00:52]} 29... Re6 {[%clk 0:00:37.7]} 30. Qh3 {[%clk
0:00:38.3]} 30... Rh8 {[%clk 0:00:31.3]} 31. Rf5+ {[%clk 0:00:37.6]} 31... Rf6
{[%clk 0:00:24.4]} 32. Rxf6+ {[%clk 0:00:17.9]} 32... Kxf6 {[%clk 0:00:23.1]}
33. Qd7 {[%clk 0:00:12]} 33... dxc3 {[%clk 0:00:22.2]} 34. Rd1 {[%clk
0:00:08.8]} 34... Kg5 {[%clk 0:00:16.6]} 35. h4+ {[%clk 0:00:06.6]} 35... Kh6
{[%clk 0:00:16.1]} 36. bxc3 {[%clk 0:00:05.2]} 36... Rf8 {[%clk 0:00:15.7]} 37.
Rd2 {[%clk 0:00:02.3]} 37... Rf7 {[%clk 0:00:14.7]} 38. Qd6 {[%clk 0:00:02.2]}
38... Kh7 {[%clk 0:00:13.5]} 39. Qe6 {[%clk 0:00:01.9]} 39... Rf6 {[%clk
0:00:10.9]} 40. Qe8 {[%clk 0:00:02.2]} 40... e4 {[%clk 0:00:10.2]} 41. Qe7
{[%clk 0:00:01.8]} 41... Qf5 {[%clk 0:00:05.5]} 42. Qb4 {[%clk 0:00:01.2]} 42...
Ne5 {[%clk 0:00:05.1]} 0-1

[Event "*** Titled Tuesday Blitz"]
[Site "Chess.com"]
[Date "2021.03.02"]
[Round "5"]
[White "JoakimVonAnd"]
[Black "GCamachoMartinez"]
[Result "1-0"]
[WhiteElo "2501"]
[BlackElo "2292"]
[TimeControl "180+1"]
[EndTime "10:55:43 PST"]
[Termination "JoakimVonAnd won by resignation"]

1. d4 {[%clk 0:03:00.9]} 1... Nf6 {[%clk 0:02:54.6]} 2. Nf3 {[%clk 0:03:00]}
2... g6 {[%clk 0:02:52.7]} 3. Bf4 {[%clk 0:02:54]} 3... Bg7 {[%clk 0:02:52.8]}
4. e3 {[%clk 0:02:47.4]} 4... O-O {[%clk 0:02:53]} 5. Be2 {[%clk 0:02:40.9]}
5... d6 {[%clk 0:02:52.6]} 6. O-O {[%clk 0:02:39.8]} 6... c5 {[%clk 0:02:53.1]}
7. c3 {[%clk 0:02:39.3]} 7... b6 {[%clk 0:02:52.2]} 8. h3 {[%clk 0:02:37.1]}
8... Bb7 {[%clk 0:02:52.1]} 9. Nbd2 {[%clk 0:02:33.3]} 9... Nbd7 {[%clk
0:02:52.1]} 10. a4 {[%clk 0:02:28]} 10... a6 {[%clk 0:02:51.7]} 11. Bh2 {[%clk
0:02:15.7]} 11... Qc7 {[%clk 0:02:42.9]} 12. b4 {[%clk 0:01:53]} 12... cxd4
{[%clk 0:02:17.6]} 13. cxd4 {[%clk 0:01:52.1]} 13... Rfc8 {[%clk 0:02:16.4]} 14.
Rc1 {[%clk 0:01:38.7]} 14... Qd8 {[%clk 0:02:14.8]} 15. Qb3 {[%clk 0:01:37.5]}
15... Bd5 {[%clk 0:01:53.5]} 16. Qb2 {[%clk 0:01:33.3]} 16... Ne4 {[%clk
0:01:52.2]} 17. Nxe4 {[%clk 0:01:09.2]} 17... Bxe4 {[%clk 0:01:53.1]} 18. Rc3
{[%clk 0:01:06.6]} 18... Rxc3 {[%clk 0:01:42.4]} 19. Qxc3 {[%clk 0:01:07.5]}
19... Rc8 {[%clk 0:01:42.4]} 20. Qb3 {[%clk 0:01:02.9]} 20... Bb7 {[%clk
0:01:23]} 21. Bc4 {[%clk 0:00:47.4]} 21... e6 {[%clk 0:01:12]} 22. Bxd6 {[%clk
0:00:45.4]} 22... Bxf3 {[%clk 0:01:09.2]} 23. gxf3 {[%clk 0:00:46.3]} 23... Qh4
{[%clk 0:00:51.6]} 24. Bxe6 {[%clk 0:00:38.5]} 24... fxe6 {[%clk 0:00:40.9]} 25.
Qxe6+ {[%clk 0:00:39.4]} 25... Kh8 {[%clk 0:00:41.5]} 26. Qxd7 {[%clk
0:00:39.5]} 26... Rd8 {[%clk 0:00:41.5]} 27. Qe7 {[%clk 0:00:29.6]} 27... Bf6
{[%clk 0:00:38.3]} 28. Be5 {[%clk 0:00:20.6]} 28... Qg5+ {[%clk 0:00:29.2]} 29.
Kh2 {[%clk 0:00:20.8]} 29... Bxe5+ {[%clk 0:00:28.8]} 30. Qxe5+ {[%clk
0:00:21.4]} 30... Qxe5+ {[%clk 0:00:22]} 31. dxe5 {[%clk 0:00:22.3]} 31... Rd2
{[%clk 0:00:22.1]} 32. Kg3 {[%clk 0:00:18.2]} 32... Rb2 {[%clk 0:00:20.4]} 33.
Rc1 {[%clk 0:00:15.8]} 33... Rxb4 {[%clk 0:00:19.7]} 34. Rc6 {[%clk 0:00:14.6]}
34... a5 {[%clk 0:00:15.9]} 35. Rc8+ {[%clk 0:00:11.3]} 35... Kg7 {[%clk
0:00:16]} 36. Rc7+ {[%clk 0:00:12.2]} 36... Kg8 {[%clk 0:00:16.2]} 37. Rb7
{[%clk 0:00:13.1]} 37... h5 {[%clk 0:00:13.9]} 38. f4 {[%clk 0:00:12]} 38... Kf8
{[%clk 0:00:05.3]} 39. Kh4 {[%clk 0:00:12]} 39... b5 {[%clk 0:00:02.2]} 40. Rxb5
{[%clk 0:00:09.9]} 40... Rxb5 {[%clk 0:00:02.5]} 41. axb5 {[%clk 0:00:10.8]}
41... Ke7 {[%clk 0:00:02.8]} 42. b6 {[%clk 0:00:11]} 42... Kd7 {[%clk
0:00:01.5]} 43. b7 {[%clk 0:00:11.5]} 43... Kc7 {[%clk 0:00:01.9]} 44. e6 {[%clk
0:00:12.1]} 44... a4 {[%clk 0:00:02.2]} 45. e7 {[%clk 0:00:12]} 45... a3 {[%clk
0:00:03.1]} 46. e8=Q {[%clk 0:00:12.2]} 46... a2 {[%clk 0:00:03]} 47. Qc8+
{[%clk 0:00:11.8]} 1-0

[Event "*** Titled Tuesday Blitz"]
[Site "Chess.com"]
[Date "2021.03.02"]
[Round "5"]
[White "TorFredrikKaasen"]
[Black "eldur16"]
[Result "1-0"]
[WhiteElo "2730"]
[BlackElo "2538"]
[TimeControl "180+1"]
[EndTime "10:55:44 PST"]
[Termination "TorFredrikKaasen won on time"]

1. e4 {[%clk 0:03:00.9]} 1... Nf6 {[%clk 0:02:59.1]} 2. e5 {[%clk 0:02:59.9]}
2... Nd5 {[%clk 0:02:59.1]} 3. d4 {[%clk 0:03:00.2]} 3... d6 {[%clk 0:02:59.3]}
4. Nf3 {[%clk 0:02:57.5]} 4... Bg4 {[%clk 0:02:58.8]} 5. h3 {[%clk 0:02:55.3]}
5... Bxf3 {[%clk 0:02:58.3]} 6. Qxf3 {[%clk 0:02:56.2]} 6... dxe5 {[%clk
0:02:58.5]} 7. dxe5 {[%clk 0:02:57]} 7... e6 {[%clk 0:02:58.7]} 8. c3 {[%clk
0:02:28.1]} 8... Nd7 {[%clk 0:02:54.6]} 9. Qe2 {[%clk 0:02:23.5]} 9... c6 {[%clk
0:02:47]} 10. c4 {[%clk 0:02:07.2]} 10... Ne7 {[%clk 0:02:38.5]} 11. Nc3 {[%clk
0:01:55.6]} 11... Nf5 {[%clk 0:02:27.6]} 12. Bf4 {[%clk 0:01:49.7]} 12... g5
{[%clk 0:02:20.7]} 13. Bh2 {[%clk 0:01:39.3]} 13... Qa5 {[%clk 0:02:14.2]} 14.
a3 {[%clk 0:01:06.7]} 14... Bg7 {[%clk 0:01:54.4]} 15. O-O-O {[%clk 0:01:02.8]}
15... Nxe5 {[%clk 0:01:37]} 16. Ne4 {[%clk 0:00:51.1]} 16... O-O {[%clk
0:01:11.6]} 17. g4 {[%clk 0:00:40.6]} 17... Ne7 {[%clk 0:01:05.5]} 18. Qc2
{[%clk 0:00:27.2]} 18... Nf3 {[%clk 0:00:51]} 19. Bd6 {[%clk 0:00:18.4]} 19...
Rfe8 {[%clk 0:00:43.1]} 20. Bb4 {[%clk 0:00:17.4]} 20... Qb6 {[%clk 0:00:34.9]}
21. Bc3 {[%clk 0:00:15.2]} 21... e5 {[%clk 0:00:18.3]} 22. c5 {[%clk 0:00:15.6]}
22... Qc7 {[%clk 0:00:17.5]} 23. Bc4 {[%clk 0:00:16]} 23... h6 {[%clk
0:00:16.4]} 24. Nd6 {[%clk 0:00:16]} 24... Rf8 {[%clk 0:00:16.3]} 25. Qe4 {[%clk
0:00:13.9]} 25... Nh4 {[%clk 0:00:13.6]} 26. Bxe5 {[%clk 0:00:12.4]} 26... Bxe5
{[%clk 0:00:12.6]} 27. Qxe5 {[%clk 0:00:13.3]} 27... Nd5 {[%clk 0:00:11]} 28.
Rhe1 {[%clk 0:00:05.8]} 28... Ng6 {[%clk 0:00:09.8]} 29. Qd4 {[%clk 0:00:05.4]}
29... Kh7 {[%clk 0:00:08.1]} 30. Nf5 {[%clk 0:00:05.8]} 30... Rg8 {[%clk
0:00:05.1]} 31. Kb1 {[%clk 0:00:06.2]} 31... Rad8 {[%clk 0:00:03.7]} 32. Qe4
{[%clk 0:00:06.2]} 32... Nf6 {[%clk 0:00:03.2]} 33. Qe2 {[%clk 0:00:05.1]} 33...
Rxd1+ {[%clk 0:00:03.5]} 34. Rxd1 {[%clk 0:00:06]} 34... Ne5 {[%clk 0:00:03.4]}
35. Bb3 {[%clk 0:00:05.1]} 35... Ng6 {[%clk 0:00:03.5]} 36. Nd6 {[%clk
0:00:05.3]} 36... Rf8 {[%clk 0:00:03.4]} 37. Qd3 {[%clk 0:00:05.5]} 37... Kg7
{[%clk 0:00:02.5]} 38. Nf5+ {[%clk 0:00:05.5]} 38... Kh7 {[%clk 0:00:02.3]} 39.
Qd6 {[%clk 0:00:06.4]} 39... Qc8 {[%clk 0:00:01.3]} 40. Qxf6 {[%clk 0:00:06.2]}
1-0

[Event "*** Titled Tuesday Blitz"]
[Site "Chess.com"]
[Date "2021.03.02"]
[Round "5"]
[White "1977Ivan"]
[Black "Anton_Demchenko"]
[Result "0-1"]
[WhiteElo "2767"]
[BlackElo "2924"]
[TimeControl "180+1"]
[EndTime "10:55:45 PST"]
[Termination "Anton_Demchenko won on time"]

1. e4 {[%clk 0:03:00.9]} 1... e5 {[%clk 0:02:59.6]} 2. Nf3 {[%clk 0:02:59.9]}
2... Nc6 {[%clk 0:03:00.2]} 3. Nc3 {[%clk 0:03:00.5]} 3... Nf6 {[%clk
0:02:59.3]} 4. Bb5 {[%clk 0:03:00.1]} 4... Nd4 {[%clk 0:02:54.8]} 5. O-O {[%clk
0:02:59.6]} 5... Nxb5 {[%clk 0:02:53.9]} 6. Nxb5 {[%clk 0:03:00.5]} 6... c6
{[%clk 0:02:54.3]} 7. Nc3 {[%clk 0:02:59.9]} 7... d6 {[%clk 0:02:55]} 8. d4
{[%clk 0:03:00.3]} 8... Qc7 {[%clk 0:02:55.7]} 9. a4 {[%clk 0:02:58.7]} 9... Be7
{[%clk 0:02:54.5]} 10. a5 {[%clk 0:02:57.7]} 10... h6 {[%clk 0:02:53.3]} 11. h3
{[%clk 0:02:55.8]} 11... g5 {[%clk 0:02:46.5]} 12. Nh2 {[%clk 0:02:40.3]} 12...
Rg8 {[%clk 0:02:41]} 13. f3 {[%clk 0:02:22.7]} 13... h5 {[%clk 0:02:22.3]} 14.
Be3 {[%clk 0:01:33.1]} 14... g4 {[%clk 0:02:15]} 15. dxe5 {[%clk 0:01:22.5]}
15... dxe5 {[%clk 0:02:14]} 16. fxg4 {[%clk 0:01:21.3]} 16... hxg4 {[%clk
0:02:13.8]} 17. Rxf6 {[%clk 0:01:10.2]} 17... Bxf6 {[%clk 0:02:13]} 18. Nxg4
{[%clk 0:01:11.1]} 18... Bxg4 {[%clk 0:01:54.3]} 19. hxg4 {[%clk 0:01:12]} 19...
Qd7 {[%clk 0:01:52.4]} 20. Qf1 {[%clk 0:00:49]} 20... Qxg4 {[%clk 0:01:41.7]}
21. a6 {[%clk 0:00:42.9]} 21... b6 {[%clk 0:01:40.8]} 22. Rd1 {[%clk 0:00:42.2]}
22... Rd8 {[%clk 0:01:30.6]} 23. Rxd8+ {[%clk 0:00:42]} 23... Bxd8 {[%clk
0:01:31.5]} 24. b4 {[%clk 0:00:28.1]} 24... Bg5 {[%clk 0:00:58.8]} 25. Bf2
{[%clk 0:00:19.6]} 25... Bf4 {[%clk 0:00:54.6]} 26. Ne2 {[%clk 0:00:12.3]} 26...
Bd2 {[%clk 0:00:54.2]} 27. b5 {[%clk 0:00:11.1]} 27... Qxe4 {[%clk 0:00:49.9]}
28. Ng3 {[%clk 0:00:10.7]} 28... Qxc2 {[%clk 0:00:35.9]} 29. bxc6 {[%clk
0:00:09.2]} 29... Qc1 {[%clk 0:00:36.2]} 30. Nf5 {[%clk 0:00:08.4]} 30... Qxf1+
{[%clk 0:00:23]} 31. Kxf1 {[%clk 0:00:09.3]} 31... Kd8 {[%clk 0:00:23.7]} 32.
Ke2 {[%clk 0:00:09.6]} 32... Bb4 {[%clk 0:00:22.7]} 33. Bh4+ {[%clk 0:00:07]}
33... Kc7 {[%clk 0:00:22.7]} 34. g3 {[%clk 0:00:06.3]} 34... Kxc6 {[%clk
0:00:21.3]} 35. Nh6 {[%clk 0:00:07.2]} 35... Rf8 {[%clk 0:00:19]} 36. Bf6 {[%clk
0:00:07.1]} 36... Bd6 {[%clk 0:00:15.3]} 37. Bg7 {[%clk 0:00:05.7]} 37... Re8
{[%clk 0:00:10]} 38. g4 {[%clk 0:00:03.3]} 38... Bf8 {[%clk 0:00:05.2]} 39. Bxf8
{[%clk 0:00:02.3]} 39... Rxf8 {[%clk 0:00:06.1]} 40. g5 {[%clk 0:00:02.8]} 40...
Kd5 {[%clk 0:00:06.5]} 41. Ke3 {[%clk 0:00:03.1]} 41... Ke6 {[%clk 0:00:05.4]}
42. Ke4 {[%clk 0:00:02.5]} 42... Rc8 {[%clk 0:00:05.8]} 0-1